[Event "Titled Tuesday Blitz August 1 Late 2023"]
[White "Ponikarovsky, Alexey"]
[Black "FuenfgegenWilly"]
[WhiteFideId "4122887"]
[WhiteElo "2685"]
[BlackElo "2410"]
[Result "1/2-1/2"]
[Round "1"]
[TimeControl "180+1"]
[Date "2023.08.01"]
[WhiteClock "0:01:28"]
[BlackClock "0:00:21"]
[Board "76"]

1. e4 {[%clk 0:03:00]}  c5 {[%clk 0:02:58]} 2. d4 {[%clk 0:03:00]}  cxd4 {[%clk 0:02:58]} 3. Nf3 {[%clk 0:03:01]}  Nc6 {[%clk 0:02:58]} 4. Bc4 {[%clk 0:03:00]}  e6 {[%clk 0:02:55]} 5. O-O {[%clk 0:03:00]}  a6 {[%clk 0:02:51]} 6. Qe2 {[%clk 0:03:00]}  b5 {[%clk 0:02:48]} 7. Bb3 {[%clk 0:02:59]}  d6 {[%clk 0:02:45]} 8. Rd1 {[%clk 0:02:59]}  Qb6 {[%clk 0:02:42]} 9. c3 {[%clk 0:03:00]}  dxc3 {[%clk 0:02:42]} 10. Nxc3 {[%clk 0:03:00]}  Nf6 {[%clk 0:02:40]} 11. Be3 {[%clk 0:02:57]}  Qb8 {[%clk 0:02:38]} 12. Bf4 {[%clk 0:02:57]}  Be7 {[%clk 0:02:32]} 13. e5 {[%clk 0:02:54]}  dxe5 {[%clk 0:02:31]} 14. Nxe5 {[%clk 0:02:54]}  Nxe5 {[%clk 0:02:31]} 15. Bxe5 {[%clk 0:02:53]}  Qb7 {[%clk 0:02:26]} 16. Bc2 {[%clk 0:02:52]}  Bd7 {[%clk 0:02:20]} 17. Bxf6 {[%clk 0:02:48]}  Bxf6 {[%clk 0:02:19]} 18. Ne4 {[%clk 0:02:44]}  Be7 {[%clk 0:02:11]} 19. Nd6+ {[%clk 0:02:44]}  Bxd6 {[%clk 0:02:10]} 20. Rxd6 {[%clk 0:02:45]}  Rc8 {[%clk 0:02:02]} 21. Be4 {[%clk 0:02:43]}  Qc7 {[%clk 0:02:00]} 22. Rad1 {[%clk 0:02:42]}  Ke7 {[%clk 0:01:57]} 23. Rxd7+ {[%clk 0:02:39]}  Qxd7 {[%clk 0:01:58]} 24. Rxd7+ {[%clk 0:02:39]}  Kxd7 {[%clk 0:01:59]} 25. Qd2+ {[%clk 0:02:40]}  Ke7 {[%clk 0:01:59]} 26. Qb4+ {[%clk 0:02:39]}  Kf6 {[%clk 0:01:58]} 27. Qd4+ {[%clk 0:02:39]}  Ke7 {[%clk 0:01:57]} 28. h4 {[%clk 0:02:39]}  g6 {[%clk 0:01:40]} 29. Qa7+ {[%clk 0:02:38]}  Kf6 {[%clk 0:01:40]} 30. Qxa6 {[%clk 0:02:39]}  Rc5 {[%clk 0:01:38]} 31. Qd6 {[%clk 0:02:38]}  Rhc8 {[%clk 0:01:36]} 32. Qd4+ {[%clk 0:02:38]}  Ke7 {[%clk 0:01:36]} 33. Bf3 {[%clk 0:02:36]}  h5 {[%clk 0:01:36]} 34. g3 {[%clk 0:02:36]}  e5 {[%clk 0:01:31]} 35. Qb4 {[%clk 0:02:36]}  Kf6 {[%clk 0:01:29]} 36. a4 {[%clk 0:02:35]}  bxa4 {[%clk 0:01:24]} 37. Qxa4 {[%clk 0:02:35]}  Rb8 {[%clk 0:01:20]} 38. Qa6+ {[%clk 0:02:33]}  Kg7 {[%clk 0:01:20]} 39. Qd6 {[%clk 0:02:31]}  Rcb5 {[%clk 0:01:19]} 40. b3 {[%clk 0:02:30]}  R8b6 {[%clk 0:01:12]} 41. Qe7 {[%clk 0:02:29]}  Kg8 {[%clk 0:01:07]} 42. Be4 {[%clk 0:02:26]}  Kg7 {[%clk 0:00:59]} 43. b4 {[%clk 0:02:24]}  Re6 {[%clk 0:00:57]} 44. Qd7 {[%clk 0:02:18]}  Rxb4 {[%clk 0:00:53]} 45. Qd3 {[%clk 0:02:16]}  Rd4 {[%clk 0:00:52]} 46. Qe3 {[%clk 0:02:15]}  Red6 {[%clk 0:00:52]} 47. Kg2 {[%clk 0:02:15]}  Rb4 {[%clk 0:00:51]} 48. Bf3 {[%clk 0:02:14]}  Rb5 {[%clk 0:00:48]} 49. Be2 {[%clk 0:02:14]}  Ra5 {[%clk 0:00:47]} 50. Bc4 {[%clk 0:02:13]}  Rc6 {[%clk 0:00:45]} 51. Qd3 {[%clk 0:02:10]}  Rac5 {[%clk 0:00:44]} 52. Ba2 {[%clk 0:02:09]}  Rc3 {[%clk 0:00:43]} 53. Qd5 {[%clk 0:02:08]}  Rf6 {[%clk 0:00:40]} 54. Qxe5 {[%clk 0:02:06]}  Rc6 {[%clk 0:00:40]} 55. Bd5 {[%clk 0:02:04]}  Rd6 {[%clk 0:00:40]} 56. Be4 {[%clk 0:02:03]}  Rb6 {[%clk 0:00:41]} 57. Qd4 {[%clk 0:02:03]}  Rd6 {[%clk 0:00:41]} 58. Qc3 {[%clk 0:02:01]}  Rb6 {[%clk 0:00:41]} 59. Bf3 {[%clk 0:02:01]}  Rd6 {[%clk 0:00:41]} 60. Qe3 {[%clk 0:02:00]}  Rb6 {[%clk 0:00:41]} 61. Qg5 {[%clk 0:02:01]}  Rf5 {[%clk 0:00:39]} 62. Qe3 {[%clk 0:02:00]}  Rff6 {[%clk 0:00:39]} 63. Qd4 {[%clk 0:01:59]}  Rd6 {[%clk 0:00:38]} 64. Qc3 {[%clk 0:01:58]}  Kh7 {[%clk 0:00:36]} 65. g4 {[%clk 0:01:55]}  hxg4 {[%clk 0:00:36]} 66. Bxg4 {[%clk 0:01:56]}  Kg7 {[%clk 0:00:36]} 67. Bf3 {[%clk 0:01:56]}  Rb6 {[%clk 0:00:35]} 68. h5 {[%clk 0:01:55]}  gxh5 {[%clk 0:00:35]} 69. Bxh5 {[%clk 0:01:55]}  Rd6 {[%clk 0:00:35]} 70. Qg3+ {[%clk 0:01:54]}  Kf8 {[%clk 0:00:36]} 71. Qe5 {[%clk 0:01:53]}  Rde6 {[%clk 0:00:35]} 72. Qc5+ {[%clk 0:01:53]}  Kg7 {[%clk 0:00:35]} 73. Bg4 {[%clk 0:01:53]}  Rd6 {[%clk 0:00:34]} 74. Qg5+ {[%clk 0:01:52]}  Rg6 {[%clk 0:00:34]} 75. Qe5+ {[%clk 0:01:52]}  Rdf6 {[%clk 0:00:35]} 76. f3 {[%clk 0:01:52]}  Kf8 {[%clk 0:00:34]} 77. Kg3 {[%clk 0:01:51]}  Kg7 {[%clk 0:00:34]} 78. Qd4 {[%clk 0:01:52]}  Kf8 {[%clk 0:00:35]} 79. Kf2 {[%clk 0:01:51]}  Rd6 {[%clk 0:00:35]} 80. Qh8+ {[%clk 0:01:50]}  Rg8 {[%clk 0:00:34]} 81. Qh4 {[%clk 0:01:48]}  Rgg6 {[%clk 0:00:34]} 82. Bh5 {[%clk 0:01:47]}  Rgf6 {[%clk 0:00:33]} 83. Qb4 {[%clk 0:01:46]}  Kg7 {[%clk 0:00:33]} 84. Bg4 {[%clk 0:01:46]}  Rb6 {[%clk 0:00:33]} 85. Qc5 {[%clk 0:01:45]}  Rbd6 {[%clk 0:00:34]} 86. Qg5+ {[%clk 0:01:44]}  Kf8 {[%clk 0:00:34]} 87. Kg3 {[%clk 0:01:45]}  Rg6 {[%clk 0:00:33]} 88. Qe5 {[%clk 0:01:45]}  Rgf6 {[%clk 0:00:33]} 89. Kh4 {[%clk 0:01:44]}  Kg7 {[%clk 0:00:33]} 90. f4 {[%clk 0:01:42]}  Kf8 {[%clk 0:00:32]} 91. f5 {[%clk 0:01:41]}  Rh6+ {[%clk 0:00:31]} 92. Kg3 {[%clk 0:01:40]}  Rhf6 {[%clk 0:00:31]} 93. Kf4 {[%clk 0:01:39]}  Rh6 {[%clk 0:00:29]} 94. Qc3 {[%clk 0:01:39]}  Rhf6 {[%clk 0:00:28]} 95. Kg5 {[%clk 0:01:39]}  Kg7 {[%clk 0:00:26]} 96. Bh5 {[%clk 0:01:36]}  Ra6 {[%clk 0:00:26]} 97. Qe5 {[%clk 0:01:35]}  Rb6 {[%clk 0:00:24]} 98. Qe7 {[%clk 0:01:35]}  Ra6 {[%clk 0:00:24]} 99. Qe5 {[%clk 0:01:32]}  Rb6 {[%clk 0:00:21]} 100. Qg3 {[%clk 0:01:33]}  Ra6 {[%clk 0:00:20]} 101. Bf3 {[%clk 0:01:32]}  Rg6+ {[%clk 0:00:18]} 102. fxg6 {[%clk 0:01:30]}  Rxg6+ {[%clk 0:00:19]} 103. Kf4 {[%clk 0:01:31]}  Rxg3 {[%clk 0:00:19]} 104. Kxg3 {[%clk 0:01:31]}  f6 {[%clk 0:00:19]} 105. Kf4 {[%clk 0:01:32]}  Kg6 {[%clk 0:00:20]} 106. Be4+ {[%clk 0:01:28]}  f5 {[%clk 0:00:21]} 1/2-1/2


[Site "https://www.chess.com"]

[Event "Titled Tuesday Blitz August 1 Late 2023"]
[White "Silva Lucena, Cristian"]
[Black "Sokolovsky, Yahli"]
[WhiteFideId "2232588"]
[BlackFideId "2820242"]
[WhiteElo "2402"]
[BlackElo "2678"]
[Result "0-1"]
[Round "1"]
[TimeControl "180+1"]
[Date "2023.08.01"]
[WhiteClock "0:00:13"]
[BlackClock "0:00:14"]
[Board "83"]

1. e4 {[%clk 0:02:53]}  d6 {[%clk 0:02:59]} 2. d4 {[%clk 0:02:52]}  Nf6 {[%clk 0:03:00]} 3. Nc3 {[%clk 0:02:53]}  g6 {[%clk 0:03:01]} 4. Bg5 {[%clk 0:02:53]}  Bg7 {[%clk 0:03:00]} 5. e5 {[%clk 0:02:53]}  Nfd7 {[%clk 0:02:55]} 6. exd6 {[%clk 0:02:52]}  cxd6 {[%clk 0:02:56]} 7. Qd2 {[%clk 0:02:53]}  h6 {[%clk 0:02:40]} 8. Be3 {[%clk 0:02:51]}  Nf6 {[%clk 0:02:40]} 9. h3 {[%clk 0:02:50]}  Nbd7 {[%clk 0:02:30]} 10. Bc4 {[%clk 0:02:48]}  Nb6 {[%clk 0:02:30]} 11. Bb3 {[%clk 0:02:48]}  Bf5 {[%clk 0:02:16]} 12. g4 {[%clk 0:02:46]}  Ne4 {[%clk 0:02:16]} 13. Nxe4 {[%clk 0:02:42]}  Bxe4 {[%clk 0:02:17]} 14. f3 {[%clk 0:02:42]}  Bd5 {[%clk 0:02:18]} 15. h4 {[%clk 0:02:30]}  Rc8 {[%clk 0:02:04]} 16. Rh2 {[%clk 0:02:07]}  Qc7 {[%clk 0:01:57]} 17. O-O-O {[%clk 0:02:02]}  Bxb3 {[%clk 0:01:36]} 18. axb3 {[%clk 0:02:02]}  Nd5 {[%clk 0:01:36]} 19. Re2 {[%clk 0:01:38]}  a5 {[%clk 0:01:23]} 20. Qd3 {[%clk 0:01:22]}  O-O {[%clk 0:01:17]} 21. Nh3 {[%clk 0:01:06]}  Nb4 {[%clk 0:00:42]} 22. Qd2 {[%clk 0:01:05]}  Nxc2 {[%clk 0:00:39]} 23. Qxc2 {[%clk 0:01:02]}  Qb6 {[%clk 0:00:39]} 24. Kb1 {[%clk 0:00:51]}  Rxc2 {[%clk 0:00:17]} 25. Rxc2 {[%clk 0:00:52]}  Qxb3 {[%clk 0:00:18]} 26. Re1 {[%clk 0:00:49]}  a4 {[%clk 0:00:18]} 27. Rc3 {[%clk 0:00:47]}  Qb4 {[%clk 0:00:19]} 28. Rd1 {[%clk 0:00:41]}  Ra8 {[%clk 0:00:17]} 29. Ra3 {[%clk 0:00:35]}  b5 {[%clk 0:00:18]} 30. Nf4 {[%clk 0:00:35]}  Qc4 {[%clk 0:00:18]} 31. Rc3 {[%clk 0:00:33]}  Qb4 {[%clk 0:00:18]} 32. Ra3 {[%clk 0:00:32]}  e6 {[%clk 0:00:17]} 33. Nd3 {[%clk 0:00:30]}  Qa5 {[%clk 0:00:17]} 34. Bd2 {[%clk 0:00:29]}  Qb6 {[%clk 0:00:17]} 35. Bb4 {[%clk 0:00:28]}  Bxd4 {[%clk 0:00:17]} 36. Nf4 {[%clk 0:00:27]}  Bc5 {[%clk 0:00:18]} 37. Bxc5 {[%clk 0:00:25]}  dxc5 {[%clk 0:00:18]} 38. Rad3 {[%clk 0:00:26]}  b4 {[%clk 0:00:18]} 39. h5 {[%clk 0:00:20]}  g5 {[%clk 0:00:18]} 40. Ne2 {[%clk 0:00:21]}  b3 {[%clk 0:00:18]} 41. Ng3 {[%clk 0:00:20]}  a3 {[%clk 0:00:18]} 42. bxa3 {[%clk 0:00:20]}  Rxa3 {[%clk 0:00:18]} 43. Ne4 {[%clk 0:00:20]}  Ra1+ {[%clk 0:00:12]} 44. Kxa1 {[%clk 0:00:15]}  Qa5+ {[%clk 0:00:12]} 45. Kb2 {[%clk 0:00:12]}  Qa2+ {[%clk 0:00:13]} 46. Kc3 {[%clk 0:00:13]}  Qc2# {[%clk 0:00:14]} 0-1


[Site "https://www.chess.com"]

[Event "Titled Tuesday Blitz August 1 Late 2023"]
[White "Annaberdiyev, Meylis"]
[Black "Rodriguez Fontecha, Marcos"]
[WhiteFideId "14000563"]
[BlackFideId "2256576"]
[WhiteElo "2674"]
[BlackElo "2399"]
[Result "0-1"]
[Round "1"]
[TimeControl "180+1"]
[Date "2023.08.01"]
[WhiteClock "0:00:00"]
[BlackClock "0:00:05"]
[Board "84"]

1. e4 {[%clk 0:02:59]}  e6 {[%clk 0:02:59]} 2. d4 {[%clk 0:02:58]}  d5 {[%clk 0:02:59]} 3. e5 {[%clk 0:02:59]}  c5 {[%clk 0:02:59]} 4. Nf3 {[%clk 0:02:59]}  cxd4 {[%clk 0:02:58]} 5. Bd3 {[%clk 0:02:55]}  Nc6 {[%clk 0:02:59]} 6. O-O {[%clk 0:02:50]}  f6 {[%clk 0:02:56]} 7. Bf4 {[%clk 0:02:45]}  fxe5 {[%clk 0:02:52]} 8. Nxe5 {[%clk 0:02:45]}  Nf6 {[%clk 0:02:52]} 9. Nd2 {[%clk 0:02:39]}  Bd6 {[%clk 0:02:50]} 10. Bb5 {[%clk 0:02:31]}  Qc7 {[%clk 0:02:44]} 11. Ndf3 {[%clk 0:01:59]}  O-O {[%clk 0:02:41]} 12. Bxc6 {[%clk 0:01:38]}  bxc6 {[%clk 0:02:33]} 13. Bg3 {[%clk 0:01:39]}  Ne4 {[%clk 0:02:27]} 14. Nd3 {[%clk 0:01:20]}  Nxg3 {[%clk 0:02:12]} 15. hxg3 {[%clk 0:01:21]}  e5 {[%clk 0:02:12]} 16. Nc1 {[%clk 0:01:14]}  c5 {[%clk 0:02:09]} 17. b4 {[%clk 0:01:12]}  cxb4 {[%clk 0:01:39]} 18. Re1 {[%clk 0:01:08]}  Bg4 {[%clk 0:01:34]} 19. Nb3 {[%clk 0:00:55]}  Rac8 {[%clk 0:01:26]} 20. Rc1 {[%clk 0:00:45]}  Rce8 {[%clk 0:01:05]} 21. Qd3 {[%clk 0:00:43]}  Bf5 {[%clk 0:00:53]} 22. Qb5 {[%clk 0:00:42]}  Be4 {[%clk 0:00:49]} 23. Nbd2 {[%clk 0:00:37]}  Rb8 {[%clk 0:00:43]} 24. Qa4 {[%clk 0:00:36]}  Bxf3 {[%clk 0:00:42]} 25. Nxf3 {[%clk 0:00:36]}  e4 {[%clk 0:00:32]} 26. Nxd4 {[%clk 0:00:32]}  Bc5 {[%clk 0:00:32]} 27. c3 {[%clk 0:00:29]}  bxc3 {[%clk 0:00:29]} 28. Rxc3 {[%clk 0:00:28]}  Qb6 {[%clk 0:00:29]} 29. Rd1 {[%clk 0:00:22]}  Rbc8 {[%clk 0:00:16]} 30. Rb3 {[%clk 0:00:17]}  Qf6 {[%clk 0:00:14]} 31. Rb2 {[%clk 0:00:16]}  Rb8 {[%clk 0:00:10]} 32. Rbd2 {[%clk 0:00:07]}  Rb4 {[%clk 0:00:08]} 33. Qd7 {[%clk 0:00:07]}  Rxd4 {[%clk 0:00:07]} 34. Rxd4 {[%clk 0:00:06]}  Qxf2+ {[%clk 0:00:07]} 35. Kh2 {[%clk 0:00:06]}  Bxd4 {[%clk 0:00:07]} 36. Qxd5+ {[%clk 0:00:07]}  Kh8 {[%clk 0:00:07]} 37. Rxd4 {[%clk 0:00:05]}  e3 {[%clk 0:00:07]} 38. Rf4 {[%clk 0:00:04]}  Rxf4 {[%clk 0:00:06]} 39. gxf4 {[%clk 0:00:04]}  Qxf4+ {[%clk 0:00:06]} 40. g3 {[%clk 0:00:05]}  Qf2+ {[%clk 0:00:05]} 41. Kh3 {[%clk 0:00:05]}  h6 {[%clk 0:00:04]} 42. Qd8+ {[%clk 0:00:05]}  Kh7 {[%clk 0:00:04]} 43. Qd3+ {[%clk 0:00:06]}  Kg8 {[%clk 0:00:04]} 44. Qd5+ {[%clk 0:00:04]}  Kf8 {[%clk 0:00:04]} 45. Qc5+ {[%clk 0:00:00]}  Kf7 {[%clk 0:00:05]} 0-1


[Site "https://www.chess.com"]

[Event "Titled Tuesday Blitz August 1 Late 2023"]
[White "Der_Balak_3Halak"]
[Black "Ardelean, George-Catalin"]
[BlackFideId "1207091"]
[WhiteElo "2398"]
[BlackElo "2671"]
[Result "1-0"]
[Round "1"]
[TimeControl "180+1"]
[Date "2023.08.01"]
[WhiteClock "0:01:29"]
[BlackClock "0:00:18"]
[Board "85"]

1. e4 {[%clk 0:02:59]}  c5 {[%clk 0:02:58]} 2. Nf3 {[%clk 0:02:56]}  Nc6 {[%clk 0:02:58]} 3. Bb5 {[%clk 0:02:56]}  g6 {[%clk 0:02:56]} 4. O-O {[%clk 0:02:54]}  Bg7 {[%clk 0:02:55]} 5. c3 {[%clk 0:02:55]}  e5 {[%clk 0:02:55]} 6. d4 {[%clk 0:02:55]}  exd4 {[%clk 0:02:51]} 7. cxd4 {[%clk 0:02:56]}  cxd4 {[%clk 0:02:50]} 8. Bf4 {[%clk 0:02:56]}  a6 {[%clk 0:02:51]} 9. Bc4 {[%clk 0:02:54]}  Nge7 {[%clk 0:02:40]} 10. Bd6 {[%clk 0:02:54]}  b5 {[%clk 0:02:24]} 11. Bd5 {[%clk 0:02:52]}  Bb7 {[%clk 0:02:07]} 12. Nbd2 {[%clk 0:02:24]}  O-O {[%clk 0:01:47]} 13. Nb3 {[%clk 0:02:22]}  Re8 {[%clk 0:01:41]} 14. Nc5 {[%clk 0:02:08]}  Ra7 {[%clk 0:01:20]} 15. Bxf7+ {[%clk 0:02:07]}  Kxf7 {[%clk 0:01:16]} 16. Qb3+ {[%clk 0:02:03]}  Kf6 {[%clk 0:00:33]} 17. Be5+ {[%clk 0:02:02]}  Nxe5 {[%clk 0:00:32]} 18. Nxe5 {[%clk 0:01:56]}  Kxe5 {[%clk 0:00:31]} 19. Qg3+ {[%clk 0:01:34]}  Kf6 {[%clk 0:00:28]} 20. Qf4+ {[%clk 0:01:32]}  Nf5 {[%clk 0:00:28]} 21. exf5 {[%clk 0:01:31]}  Qb8 {[%clk 0:00:18]} 22. Nxd7+ {[%clk 0:01:29]} 1-0


[Site "https://www.chess.com"]

[Event "Titled Tuesday Blitz August 1 Late 2023"]
[White "KorolDimitriy75"]
[Black "Rastbod, Ali"]
[BlackFideId "12567477"]
[WhiteElo "2385"]
[BlackElo "2665"]
[Result "0-1"]
[Round "1"]
[TimeControl "180+1"]
[Date "2023.08.01"]
[WhiteClock "0:00:04"]
[BlackClock "0:00:06"]
[Board "87"]

1. d4 {[%clk 0:02:53]}  d5 {[%clk 0:02:56]} 2. c4 {[%clk 0:02:53]}  e6 {[%clk 0:02:56]} 3. Nc3 {[%clk 0:02:54]}  h6 {[%clk 0:02:56]} 4. e3 {[%clk 0:02:50]}  Nf6 {[%clk 0:02:56]} 5. Bd3 {[%clk 0:02:50]}  dxc4 {[%clk 0:02:56]} 6. Bxc4 {[%clk 0:02:49]}  c5 {[%clk 0:02:57]} 7. Nf3 {[%clk 0:02:49]}  cxd4 {[%clk 0:02:57]} 8. exd4 {[%clk 0:02:46]}  b6 {[%clk 0:02:49]} 9. O-O {[%clk 0:02:45]}  Bb7 {[%clk 0:02:50]} 10. Re1 {[%clk 0:02:42]}  Be7 {[%clk 0:02:49]} 11. Bf4 {[%clk 0:02:29]}  O-O {[%clk 0:02:47]} 12. h3 {[%clk 0:02:23]}  Nc6 {[%clk 0:02:46]} 13. a3 {[%clk 0:02:20]}  Na5 {[%clk 0:02:41]} 14. Ba2 {[%clk 0:02:20]}  Nd5 {[%clk 0:02:38]} 15. Bg3 {[%clk 0:01:52]}  Nxc3 {[%clk 0:02:32]} 16. bxc3 {[%clk 0:01:53]}  Bd5 {[%clk 0:02:32]} 17. Bb1 {[%clk 0:01:18]}  Rc8 {[%clk 0:02:20]} 18. Qd3 {[%clk 0:01:16]}  f5 {[%clk 0:02:17]} 19. Ne5 {[%clk 0:01:14]}  Bf6 {[%clk 0:02:03]} 20. Bc2 {[%clk 0:01:13]}  Bxe5 {[%clk 0:01:55]} 21. Bxe5 {[%clk 0:01:12]}  Nc4 {[%clk 0:01:55]} 22. a4 {[%clk 0:01:09]}  Nxe5 {[%clk 0:01:52]} 23. Rxe5 {[%clk 0:01:09]}  Qc7 {[%clk 0:01:53]} 24. Re3 {[%clk 0:01:01]}  Rf6 {[%clk 0:01:39]} 25. Rg3 {[%clk 0:00:47]}  Qc6 {[%clk 0:01:20]} 26. f4 {[%clk 0:00:31]}  Rf7 {[%clk 0:01:11]} 27. Re1 {[%clk 0:00:27]}  Rfc7 {[%clk 0:01:01]} 28. Ree3 {[%clk 0:00:21]}  Qd6 {[%clk 0:00:56]} 29. Qf1 {[%clk 0:00:19]}  a5 {[%clk 0:00:37]} 30. Kh2 {[%clk 0:00:20]}  Kh8 {[%clk 0:00:34]} 31. Qf2 {[%clk 0:00:19]}  Rc6 {[%clk 0:00:30]} 32. Qf1 {[%clk 0:00:14]}  Qc7 {[%clk 0:00:30]} 33. Qf2 {[%clk 0:00:13]}  Qd6 {[%clk 0:00:28]} 34. Qf1 {[%clk 0:00:13]}  R8c7 {[%clk 0:00:28]} 35. Qf2 {[%clk 0:00:13]}  Qd8 {[%clk 0:00:29]} 36. Qf1 {[%clk 0:00:13]}  Qc8 {[%clk 0:00:29]} 37. Qe1 {[%clk 0:00:13]}  Rf7 {[%clk 0:00:21]} 38. Qd2 {[%clk 0:00:12]}  Qc7 {[%clk 0:00:22]} 39. Qe1 {[%clk 0:00:12]}  g5 {[%clk 0:00:22]} 40. Rgf3 {[%clk 0:00:09]}  Bxf3 {[%clk 0:00:21]} 41. Rxf3 {[%clk 0:00:09]}  gxf4 {[%clk 0:00:19]} 42. Bb3 {[%clk 0:00:09]}  Rf6 {[%clk 0:00:18]} 43. Qh4 {[%clk 0:00:07]}  Kg7 {[%clk 0:00:17]} 44. Rxf4 {[%clk 0:00:06]}  Rxc3 {[%clk 0:00:17]} 45. Bd1 {[%clk 0:00:04]}  Rg6 {[%clk 0:00:17]} 46. Bf3 {[%clk 0:00:04]}  Rg4 {[%clk 0:00:13]} 47. hxg4 {[%clk 0:00:03]}  Qxf4+ {[%clk 0:00:13]} 48. Kh3 {[%clk 0:00:04]}  Rxf3+ {[%clk 0:00:10]} 49. gxf3 {[%clk 0:00:03]}  Qxf3+ {[%clk 0:00:11]} 50. Kh2 {[%clk 0:00:04]}  Qf4+ {[%clk 0:00:10]} 51. Kh1 {[%clk 0:00:04]}  Qe4+ {[%clk 0:00:09]} 52. Kh2 {[%clk 0:00:03]}  Qe2+ {[%clk 0:00:08]} 53. Kh1 {[%clk 0:00:03]}  Qd1+ {[%clk 0:00:06]} 54. Kh2 {[%clk 0:00:03]}  Qc2+ {[%clk 0:00:06]} 55. Kh1 {[%clk 0:00:03]}  Qc6+ {[%clk 0:00:06]} 56. Kh2 {[%clk 0:00:02]}  Qc7+ {[%clk 0:00:06]} 57. Kh1 {[%clk 0:00:02]}  Qf7 {[%clk 0:00:06]} 58. g5 {[%clk 0:00:02]}  hxg5 {[%clk 0:00:05]} 59. Qxg5+ {[%clk 0:00:03]}  Kh7 {[%clk 0:00:04]} 60. Qh4+ {[%clk 0:00:03]}  Kg8 {[%clk 0:00:05]} 61. Qf4 {[%clk 0:00:03]}  Qh5+ {[%clk 0:00:04]} 62. Kg2 {[%clk 0:00:03]}  Qg4+ {[%clk 0:00:05]} 63. Qxg4+ {[%clk 0:00:03]}  fxg4 {[%clk 0:00:06]} 64. Kg3 {[%clk 0:00:04]}  Kf7 {[%clk 0:00:07]} 65. Kxg4 {[%clk 0:00:05]}  Ke7 {[%clk 0:00:07]} 66. Kf4 {[%clk 0:00:05]}  Kd7 {[%clk 0:00:07]} 67. Ke5 {[%clk 0:00:05]}  b5 {[%clk 0:00:05]} 68. axb5 {[%clk 0:00:04]}  a4 {[%clk 0:00:06]} 69. d5 {[%clk 0:00:05]}  exd5 {[%clk 0:00:05]} 70. Kd4 {[%clk 0:00:05]}  Kd6 {[%clk 0:00:04]} 71. b6 {[%clk 0:00:04]}  Kc6 {[%clk 0:00:05]} 72. b7 {[%clk 0:00:05]}  Kxb7 {[%clk 0:00:05]} 73. Kxd5 {[%clk 0:00:05]}  a3 {[%clk 0:00:05]} 74. Kc4 {[%clk 0:00:04]}  a2 {[%clk 0:00:06]} 0-1


[Site "https://www.chess.com"]

[Event "Titled Tuesday Blitz August 1 Late 2023"]
[White "Haitin, Ilja"]
[Black "Korchmar, Vasiliy"]
[WhiteFideId "4501764"]
[BlackFideId "24131750"]
[WhiteElo "2379"]
[BlackElo "2662"]
[Result "0-1"]
[Round "1"]
[TimeControl "180+1"]
[Date "2023.08.01"]
[WhiteClock "0:00:00"]
[BlackClock "0:00:25"]
[Board "89"]

1. Nf3 {[%clk 0:02:57]}  d5 {[%clk 0:02:58]} 2. e3 {[%clk 0:02:57]}  Nf6 {[%clk 0:02:57]} 3. b3 {[%clk 0:02:55]}  Bf5 {[%clk 0:02:55]} 4. Bb2 {[%clk 0:02:49]}  e6 {[%clk 0:02:55]} 5. Nh4 {[%clk 0:02:49]}  Bg4 {[%clk 0:02:51]} 6. Be2 {[%clk 0:02:48]}  Bxe2 {[%clk 0:02:51]} 7. Qxe2 {[%clk 0:02:49]}  c5 {[%clk 0:02:37]} 8. f4 {[%clk 0:02:47]}  Nc6 {[%clk 0:02:36]} 9. O-O {[%clk 0:02:46]}  Bd6 {[%clk 0:02:35]} 10. Nf3 {[%clk 0:02:41]}  O-O {[%clk 0:02:33]} 11. d3 {[%clk 0:02:37]}  Re8 {[%clk 0:02:27]} 12. Ne5 {[%clk 0:02:36]}  Bxe5 {[%clk 0:02:22]} 13. fxe5 {[%clk 0:02:36]}  Nd7 {[%clk 0:02:23]} 14. Qh5 {[%clk 0:02:11]}  g6 {[%clk 0:02:18]} 15. Qf3 {[%clk 0:02:10]}  Ndxe5 {[%clk 0:02:14]} 16. Qg3 {[%clk 0:02:11]}  d4 {[%clk 0:02:12]} 17. Nd2 {[%clk 0:02:08]}  f5 {[%clk 0:01:43]} 18. exd4 {[%clk 0:01:57]}  cxd4 {[%clk 0:01:40]} 19. Rae1 {[%clk 0:01:54]}  Ng4 {[%clk 0:01:39]} 20. Nc4 {[%clk 0:01:38]}  b5 {[%clk 0:01:21]} 21. Nd6 {[%clk 0:01:36]}  Re7 {[%clk 0:01:21]} 22. Nxb5 {[%clk 0:01:33]}  a6 {[%clk 0:01:07]} 23. Na3 {[%clk 0:01:23]}  Ne3 {[%clk 0:01:05]} 24. Rxe3 {[%clk 0:01:21]}  dxe3 {[%clk 0:01:04]} 25. Qxe3 {[%clk 0:01:22]}  Qd5 {[%clk 0:00:43]} 26. Nc4 {[%clk 0:01:17]}  Rae8 {[%clk 0:00:42]} 27. h4 {[%clk 0:01:03]}  e5 {[%clk 0:00:41]} 28. h5 {[%clk 0:01:01]}  Nd4 {[%clk 0:00:35]} 29. hxg6 {[%clk 0:00:49]}  hxg6 {[%clk 0:00:36]} 30. Qg5 {[%clk 0:00:49]}  Ne2+ {[%clk 0:00:34]} 31. Kf2 {[%clk 0:00:42]}  Nf4 {[%clk 0:00:34]} 32. Ne3 {[%clk 0:00:15]}  Qc5 {[%clk 0:00:23]} 33. Rh1 {[%clk 0:00:15]}  Rh7 {[%clk 0:00:23]} 34. Rxh7 {[%clk 0:00:15]}  Kxh7 {[%clk 0:00:24]} 35. Qh4+ {[%clk 0:00:08]}  Kg8 {[%clk 0:00:24]} 36. Qf6 {[%clk 0:00:02]}  Qxe3+ {[%clk 0:00:24]} 37. Kxe3 {[%clk 0:00:01]}  Nd5+ {[%clk 0:00:24]} 38. Kf2 {[%clk 0:00:00]}  Nxf6 {[%clk 0:00:25]} 0-1


[Site "https://www.chess.com"]